[Event "27th Fajr Cup Masters 2019"]
[Site "Tehran"]
[Date "2019.02.10"]
[Round "8.4"]
[White "Mousavi, Seyed Khalil"]
[Black "Asgarizadeh, Ahmad"]
[Result "1/2-1/2"]
[ECO "A13"]
[WhiteElo "2485"]
[BlackElo "2423"]
[Annotator "ChessBase"]
[PlyCount "44"]
[EventDate "2019.02.05"]
[EventType "swiss"]
[EventCountry "IRI"]
[SourceTitle "playchess.com"]
[Source "ChessBase"]
[SourceQuality "1"]
[TimeControl "5400+30"]

1. c4 {[%emt 0:02:41]} e6 {[%emt 0:00:24]} 2. Nf3 {[%emt 0:01:29]} d5 {[%emt 0:00:05]} 3. e3 {[%emt 0:00:38]} Nf6 {[%emt 0:00:26]} 4. b3 {[%emt 0:00:17]} Be7 {[%emt 0:00:43]} 5. Bb2 {[%emt 0:00:48]} O-O {[%emt 0:00:09]} 6. Be2 {[%emt 0:00:16]} dxc4 {[%emt 0:01:20]} 7. Bxc4 {[%emt 0:02:19]} c5 {[%emt 0:03:19]} 8. O-O {[%emt 0:02:24]} a6 {[%emt 0:00:05]} 9. a4 {[%emt 0:04:37]} Nc6 {[%emt 0:03:32]} 10. d4 {[%emt 0:00:37]} cxd4 {[%emt 0:10:23]} 11. Nxd4 {[%emt 0:00:08]} Nxd4 {[%emt 0:01:26]} 12. Bxd4 {[%emt 0:01:10]} Bd7 {[%emt 0:02:28]} 13. Nd2 {[%emt 0:04:21]} Bc6 {[%emt 0:09:46]} 14. Qe2 {[%emt 0:03:51]} Nd7 {[%emt 0:08:22]} 15. Rfd1 {[%emt 0:08:57]} Bf6 {[%emt 0:07:03]} 16. Nf3 {[%emt 0:02:01]} Qa5 {[%emt 0:09:06]} 17. e4 {[%emt 0:06:44]} Rac8 {[%emt 0:02:07]} 18. Qe3 {[%emt 0:06:16]} Rfd8 {[%emt 0:03:18]} 19. h3 {[%emt 0:02:00]} Ne5 {[%emt 0:11:13]} 20. Nxe5 {[%emt 0:07:48]} Bxe5 {[%emt 0:00:02]} 21. Bb6 {[%emt 0:00:48]} Rxd1+ {[%emt 0:01:02]} 22. Rxd1 {[%emt 0:00:06]} Qc3 {[%emt 0:01:00]} 1/2-1/2

[Event "27th Fajr Cup Masters 2019"]
[Site "Tehran"]
[Date "2019.02.10"]
[Round "8.6"]
[White "Malakhatko, Vadim"]
[Black "Khodashenas, Mersad"]
[Result "1-0"]
[ECO "D20"]
[WhiteElo "2525"]
[BlackElo "2455"]
[Annotator "RC"]
[PlyCount "211"]
[EventDate "2019.02.05"]
[EventType "swiss"]
[EventCountry "IRI"]
[SourceTitle "playchess.com"]
[Source "ChessBase"]
[SourceQuality "1"]
[TimeControl "5400+30"]

1. d4 {[%emt 0:00:00]} d5 {[%emt 0:00:00]} 2. c4 {[%emt 0:00:00]} dxc4 {[%emt 0:00:00]} 3. e4 {[%emt 0:00:00]} Nf6 {[%emt 0:00:00]} 4. e5 {[%emt 0:00:08]} Nd5 {[%emt 0:00:00]} 5. Bxc4 {[%emt 0:00:12]} Bf5 {[%emt 0:00:00]} 6. Ne2 {[%emt 0:01:24]} e6 {[%emt 0:04:25]} 7. O-O {[%emt 0:00:17]} Nb6 {[%emt 0:04:11]} 8. Bb3 {[%emt 0:00:06]} c5 {[%emt 0:06:08]} 9. Be3 {[%emt 0:03:36]} c4 {[%emt 0:00:25]} 10. Bxc4 {[%emt 0:01:53]} Nxc4 {[%emt 0:00:02]} 11. Qa4+ {[%emt 0:00:07]} Nc6 {[%emt 0:00:08]} 12. Qxc4 {[%emt 0:00:06]} Rc8 {[%emt 0:02:11]} 13. Qa4 {[%emt 0:00:08]} Qb6 {[%emt 0:09:18]} 14. d5 {[%emt 0:04:12]} Qb4 {[%emt 0:00:10]} 15. Qxb4 {[%emt 0:00:07]} Nxb4 {[%emt 0:00:01]} 16. Nbc3 {[%emt 0:00:09]} Nxd5 {[%emt 0:09:40]} 17. Nxd5 {[%emt 0:00:08]} exd5 {[%emt 0:00:01]} 18. Rfc1 {[%emt 0:02:24]} Rc4 {[%emt 0:26:37]} 19. Bxa7 {[%emt 0:22:26]} Bb4 {[%emt 0:05:51]} 20. b3 {[%emt 0:12:34]} Rxc1+ {[%emt 0:01:26]} 21. Rxc1 {[%emt 0:03:13]} Kd7 {[%emt 0:00:17]} 22. Bc5 {[%emt 0:08:40]} Bd2 {[%emt 0:00:56]} 23. Rd1 {[%emt 0:00:09]} Bh6 {[%emt 0:00:01]} 24. Be3 {[%emt 0:09:01]} Bxe3 {[%emt 0:12:52]} 25. fxe3 {[%emt 0:02:37]} Rc8 {[%emt 0:05:21]} 26. Rxd5+ {[%emt 0:00:08]} Ke8 {[%emt 0:02:00]} 27. Rd2 {[%emt 0:02:33]} Rc5 {[%emt 0:00:50]} 28. Nd4 {[%emt 0:00:52]} Be4 {[%emt 0:01:01]} 29. a4 {[%emt 0:02:56]} Ke7 {[%emt 0:01:17]} 30. Rd1 {[%emt 0:04:13]} Rxe5 {[%emt 0:03:36]} 31. b4 {[%emt 0:02:03]} Rg5 {[%emt 0:00:24]} 32. Rd2 {[%emt 0:00:54]} Rg6 {[%emt 0:00:00]} 33. a5 {[%emt 0:00:20]} Ra6 {[%emt 0:01:06]} 34. Nb3 {[%emt 0:01:46]} Rd6 {[%emt 0:00:18]} 35. Kf2 {[%emt 0:08:08]} f5 {[%emt 0:03:33]} 36. Rd4 {[%emt 0:05:25]} Rxd4 {[%emt 0:02:02]} 37. Nxd4 {[%emt 0:00:06]} Kd6 {[%emt 0:00:45]} 38. h4 {[%emt 0:00:23]} g6 {[%emt 0:01:19]} 39. g3 {[%emt 0:00:27]} Kd5 {[%emt 0:00:34]} 40. b5 {[%emt 0:01:08]} Bd3 {[%emt 0:00:26]} 41. Kf3 {[%emt 0:00:16]} Kc5 {[%emt 0:00:34]} 42. a6 {[%emt 0:00:08]} bxa6 {[%emt 0:00:08]} 43. bxa6 {[%emt 0:00:07]} Bxa6 {[%emt 0:00:01]} 44. Ne6+ {[%emt 0:00:25]} Kd6 {[%emt 0:00:29]} 45. Nf8 {[%emt 0:00:07]} Ke5 {[%emt 0:00:31]} 46. Nxh7 {[%emt 0:00:07]} Bb7+ {[%emt 0:00:05]} 47. Ke2 {[%emt 0:00:13]} Ba6+ {[%emt 0:00:52]} 48. Kd2 {[%emt 0:00:28]} Bc4 {[%emt 0:00:17]} 49. Ng5 {[%emt 0:00:20]} Bg8 {[%emt 0:00:57]} 50. Kc3 {[%emt 0:00:08]} Bd5 {[%emt 0:00:31]} 51. Kb4 {[%emt 0:00:06]} Kd6 {[%emt 0:00:01]} 52. Kb5 {[%emt 0:00:21]} Ba2 {[%emt 0:00:52]} 53. Kb4 {[%emt 0:01:44]} Bd5 {[%emt 0:00:01]} 54. Nh3 {[%emt 0:00:28]} Bf7 {[%emt 0:01:15]} 55. Kb5 {[%emt 0:00:23]} Bd5 {[%emt 0:01:05]} 56. Kb4 {[%emt 0:00:49]} Ke5 {[%emt 0:00:34]} 57. Ng5 {[%emt 0:01:16]} Kd6 {[%emt 0:00:09]} 58. Kc3 {[%emt 0:00:04]} Ke5 {[%emt 0:00:06]} 59. Kd3 {[%emt 0:00:06]} Bg8 {[%emt 0:00:46]} 60. Ke2 {[%emt 0:00:06]} Bc4+ {[%emt 0:00:18]} 61. Kf2 {[%emt 0:00:09]} Bd5 {[%emt 0:00:17]} 62. Nf3+ {[%emt 0:01:18]} Kf6 {[%emt 0:00:08]} 63. Ke2 {[%emt 0:01:03]} Bc4+ {[%emt 0:00:19]} 64. Ke1 {[%emt 0:00:26]} Bd5 {[%emt 0:00:06]} 65. Kf2 {[%emt 0:00:04]} Bc4 {[%emt 0:00:44]} 66. Nd4 {[%emt 0:00:58]} Bd5 {[%emt 0:00:36]} 67. Ne2 {[%emt 0:01:16]} Ke5 {[%emt 0:00:50]} 68. Nf4 {[%emt 0:00:06]} Bf7 {[%emt 0:00:03]} 69. Kf3 {[%emt 0:00:08]} Kf6 {[%emt 0:00:29]} 70. Nd3 {[%emt 0:01:38]} g5 {[%emt 0:00:18]} 71. Kf2 {[%emt 0:00:43]} Be8 {[%emt 0:00:55]} 72. Ne1 {[%emt 0:00:07]} Kg6 {[%emt 0:00:59]} 73. Nf3 {[%emt 0:00:12]} gxh4 {[%emt 0:00:09]} 74. gxh4 {[%emt 0:00:04]} Kh5 {[%emt 0:00:54]} 75. Kg3 {[%emt 0:00:11]} Bc6 {[%emt 0:00:41]} 76. Nd4 {[%emt 0:01:21]} Bd7 {[%emt 0:00:01]} 77. Ne2 {[%emt 0:00:06]} Kg6 {[%emt 0:00:01]} 78. Nf4+ {[%emt 0:00:22]} Kf6 {[%emt 0:00:15]} 79. Kf3 {[%emt 0:00:08]} Bc6+ {[%emt 0:00:40]} 80. Ke2 {[%emt 0:00:05]} Bb5+ {[%emt 0:01:07]} 81. Kf3 {[%emt 0:01:10]} Bc6+ {[%emt 0:00:21]} 82. Kg3 {[%emt 0:00:05]} Bd7 {[%emt 0:00:13]} 83. Nd5+ {[%emt 0:01:14]} Ke5 {[%emt 0:00:15]} 84. h5 {[%emt 0:01:15]} Be8 {[%emt 0:00:38]} 85. h6 {[%emt 0:00:06]} Bg6 {[%emt 0:00:11]} 86. Nf4 {[%emt 0:00:23]} Bh7 {[%emt 0:00:16]} 87. Nh5 {[%emt 0:02:07]} f4+ {[%emt 0:02:15]} 88. Nxf4 {[%emt 0:01:03]} Kf6 {[%emt 0:00:47]} 89. Kg4 {[%emt 0:00:55]} Be4 {[%emt 0:00:30]} 90. Nh5+ {[%emt 0:02:02]} Ke6 {[%emt 0:00:45]} 91. Kg5 {[%emt 0:00:11]} Bb1 {[%emt 0:00:26]} 92. Nf6 {[%emt 0:00:18]} Kf7 {[%emt 0:00:30]} 93. Nd5 {[%emt 0:01:53]} Ke6 {[%emt 0:00:31]} 94. Nf6 {[%emt 0:00:22]} Kf7 {[%emt 0:00:01]} 95. e4 {[%emt 0:00:07]} Ba2 {[%emt 0:00:33]} 96. Nh5 {[%emt 0:00:41]} Kg8 {[%emt 0:00:04]} 97. Ng3 {[%emt 0:00:27]} Bb1 {[%emt 0:01:02]} 98. e5 {[%emt 0:00:23]} Bh7 {[%emt 0:00:54]} 99. e6 {[%emt 0:00:20]} Bd3 {[%emt 0:00:21]} 100. Nf5 {[%emt 0:00:11]} Kh7 {[%emt 0:00:16]} 101. Nd6 {[%emt 0:00:32]} Bc2 {[%emt 0:00:15]} 102. e7 {[%emt 0:00:10]} Bg6 {[%emt 0:00:03]} 103. e8=Q {[%emt 0:00:11]} Bxe8 {[%emt 0:00:02]} 104. Nxe8 {[%emt 0:00:07]} Kg8 {[%emt 0:00:02]} 105. Kg6 {[%emt 0:00:10]} Kh8 {[%emt 0:00:03]} 106. Nd6 {[%emt 0:00:07]} 1-0